fUST/lending_fUST_20250127
["ID","MTS","AMOUNT","RATE_DAILY","PERIOD"]
[350480562,1737913847024,-500.0,0.00016438,2]
[350480563,1737913847034,-500.0,0.00016438,2]
[350480564,1737913847044,-500.0,0.00016438,2]
[350480565,1737913847053,-500.0,0.00016438,2]
[350480566,1737913847062,-1330.19,0.00016438,2]
[350480567,1737913847072,-500.0,0.00016438,2]
[350480568,1737913847081,-2565.9,0.00016438,2]
[350480569,1737913847091,-500.0,0.00016438,2]
[350480570,1737913847100,-500.0,0.00016438,2]
[350480571,1737913847110,-500.0,0.00016438,2]
[350480572,1737913847119,-671.03,0.00016438,2]
[350480573,1737913847129,-500.0,0.00016438,2]
[350480574,1737913847139,-2383.85,0.00016438,2]
[350480575,1737913847147,-460.12129269,0.00016438,2]
[350480576,1737913847158,-738.55,0.00016463,2]
[350480577,1737913847167,-536.0,0.00016464,2]
[350480578,1737913847176,-2050.0,0.00016464,2]
[350480579,1737913847186,-2305.0,0.00016464,2]
[350480580,1737913847195,-1198.5,0.00016472,2]
[350480581,1737913847204,-500.0,0.00016473,2]
[350480582,1737913847214,-500.0,0.00016473,2]
[350480583,1737913847223,-14030.38789567,0.00016475,2]
[350480584,1737913847233,-3000.0,0.00016475,2]
[350480585,1737913847243,-513.0,0.00016549,2]
[350480586,1737913847253,-738.55,0.00016573,2]
[350480587,1737913847262,-500.0,0.00016574,2]
[350480588,1737913847271,-500.0,0.00016574,2]
[350480589,1737913847281,-1198.5,0.00016574,2]
[350480590,1737913847291,-1198.5,0.00016574,2]
[350480591,1737913847300,-1198.5,0.00016574,2]
[350480592,1737913847310,-1198.5,0.00016574,2]
[350480593,1737913847320,-1198.5,0.00016574,2]
[350480594,1737913847329,-738.55,0.00016574,2]
[350480595,1737913847339,-738.55,0.00016574,2]
[350480596,1737913847349,-738.55,0.00016574,2]
[350480597,1737913847358,-738.55,0.00016574,2]
[350480598,1737913847368,-500.0,0.00016575,2]
[350480599,1737913847377,-500.0,0.00016575,2]
[350480600,1737913847386,-500.0,0.00016575,2]
[350480601,1737913847396,-500.0,0.00016575,2]
[350480602,1737913847406,-500.0,0.00016575,2]
[350480603,1737913847415,-500.0,0.00016575,2]
[350480604,1737913847425,-198.78501635,0.00016575,2]
[350480605,1737913847434,-500.0,0.00016575,2]
[350480606,1737913847444,-500.0,0.00016575,2]
[350480607,1737913847456,-500.0,0.00016575,2]
[350480608,1737913847465,-500.0,0.00016575,2]
[350480609,1737913847475,-500.0,0.00016575,2]
[350480610,1737913847485,-500.0,0.00016575,2]
[350480611,1737913847495,-221.47427157,0.00016575,2]
[350480612,1737913847505,-500.0,0.00016575,2]
[350480613,1737913847514,-500.0,0.00016575,2]
[350480614,1737913847525,-500.0,0.00016575,2]
[350480615,1737913847534,-500.0,0.00016575,2]
[350480616,1737913847543,-191.55976062,0.00016575,2]
[350480617,1737913847553,-500.0,0.00016575,2]
[350480618,1737913847562,-500.0,0.00016575,2]
[350480619,1737913847571,-500.0,0.00016575,2]
[350480620,1737913847581,-500.0,0.00016575,2]
[350480621,1737913847591,-500.0,0.00016575,2]
[350480622,1737913847600,-500.0,0.00016575,2]
[350480623,1737913847609,-500.0,0.00016575,2]
[350480624,1737913847619,-505.80102952,0.00016575,2]
[350480625,1737913847628,-500.0,0.00016575,2]
[350480626,1737913847638,-500.0,0.00016575,2]
[350480627,1737913847648,-500.0,0.00016575,2]
[350480628,1737913847658,-500.0,0.00016575,2]
[350480629,1737913847667,-500.0,0.00016575,2]
[350480630,1737913847677,-504.97749948,0.00016575,2]
[350480631,1737913847687,-500.0,0.00016575,2]
[350480632,1737913847697,-500.0,0.00016575,2]
[350480633,1737913847707,-500.0,0.00016575,2]
[350480634,1737913847716,-251.49910826,0.00016575,2]
[350480635,1737913847725,-500.0,0.00016575,2]
[350480636,1737913847735,-500.0,0.00016575,2]
[350480637,1737913847744,-500.0,0.00016575,2]
[350480638,1737913847754,-500.0,0.00016575,2]
[350480639,1737913847763,-500.0,0.00016575,2]
[350480640,1737913847773,-187.39233916,0.00016575,2]
[350480641,1737913847783,-500.0,0.00016575,2]
[350480642,1737913847793,-500.0,0.00016575,2]
[350480643,1737913847802,-500.0,0.00016575,2]
[350480644,1737913847811,-500.0,0.00016575,2]
[350480645,1737913847821,-500.0,0.00016575,2]
[350480646,1737913847831,-500.0,0.00016575,2]
[350480647,1737913847840,-500.0,0.00016575,2]
[350480648,1737913847850,-500.0,0.00016575,2]
[350480649,1737913847860,-500.0,0.00016575,2]
[350480650,1737913847871,-500.0,0.00016575,2]
[350480651,1737913847881,-606.37,0.00016575,2]
[350480652,1737913847890,-500.0,0.00016575,2]
[350480653,1737913847901,-500.0,0.00016575,2]
[350480654,1737913847910,-267.66556481,0.00016575,2]
[350480655,1737913847920,-500.0,0.00016575,2]
[350480656,1737913847929,-500.0,0.00016575,2]
[350480657,1737913847939,-500.0,0.00016575,2]
[350480658,1737913847949,-500.0,0.00016575,2]
[350480659,1737913847958,-491.24341778,0.00016575,2]
[350480660,1737913847967,-500.0,0.00016575,2]
[350480661,1737913847976,-500.0,0.00016575,2]
[350480662,1737913847985,-500.0,0.00016575,2]
[350480663,1737913847995,-500.0,0.00016575,2]
[350480664,1737913848004,-500.0,0.00016575,2]
[350480665,1737913848015,-500.0,0.00016575,2]
[350480666,1737913848025,-500.0,0.00016575,2]
[350480667,1737913848035,-500.0,0.00016575,2]
[350480668,1737913848045,-500.0,0.00016575,2]
[350480669,1737913848055,-500.0,0.00016575,2]
[350480670,1737913848064,-500.0,0.00016575,2]
[350480671,1737913848075,-500.0,0.00016575,2]
[350480672,1737913848085,-1046.21,0.00016575,2]
[350480673,1737913848095,-487.29072197,0.00016575,2]
[350480674,1737913848104,-500.0,0.00016575,2]
[350480675,1737913848114,-500.0,0.00016575,2]
[350480676,1737913848124,-500.0,0.00016575,2]
[350480677,1737913848133,-598.94,0.00016575,2]
[350480678,1737913848143,-788.43,0.00016575,2]
[350480679,1737913848153,-500.0,0.00016575,2]
[350480680,1737913848163,-500.0,0.00016575,2]
[350480681,1737913848173,-500.0,0.00016575,2]
[350480682,1737913848183,-500.0,0.00016575,2]
[350480683,1737913848192,-500.0,0.00016575,2]
[350480684,1737913848202,-9738.4,0.00016575,2]
[350480685,1737913848211,-500.0,0.00016575,2]
[350480686,1737913848220,-500.0,0.00016575,2]
[350480687,1737913848230,-500.0,0.00016575,2]
[350480688,1737913848239,-500.0,0.00016575,2]
[350480689,1737913848248,-500.0,0.00016575,2]
[350480690,1737913848257,-500.0,0.00016575,2]
[350480691,1737913848266,-500.0,0.00016575,2]
[350480692,1737913848276,-500.0,0.00016575,2]
[350480693,1737913848286,-500.0,0.00016575,2]
[350480694,1737913848296,-500.0,0.00016575,2]
[350480695,1737913848306,-500.0,0.00016575,2]
[350480696,1737913848316,-500.0,0.00016575,2]
[350480697,1737913848325,-500.0,0.00016575,2]
[350480698,1737913848334,-500.0,0.00016575,2]
[350480699,1737913848344,-500.0,0.00016575,2]
[350480700,1737913848354,-862.67,0.00016575,2]
[350480701,1737913848363,-500.0,0.00016575,2]
[350480702,1737913848373,-2007.14,0.00016575,2]
[350480703,1737913848384,-500.0,0.00016575,2]
[350480704,1737913848394,-500.0,0.00016575,2]
[350480705,1737913848405,-500.0,0.00016575,2]
[350480706,1737913848415,-488.10882255,0.00016575,2]
[350480707,1737913848424,-500.0,0.00016575,2]
[350480708,1737913848434,-4066.03,0.00016575,2]
[350480709,1737913848443,-500.0,0.00016575,2]
[350480710,1737913848458,-500.0,0.00016575,2]
[350480711,1737913848467,-500.0,0.00016575,2]
[350480712,1737913848477,-500.0,0.00016575,2]
[350480713,1737913848487,-500.0,0.00016575,2]
[350480714,1737913848497,-500.0,0.00016575,2]
[350480715,1737913848506,-500.0,0.00016575,2]
[350480716,1737913848516,-1264.14,0.00016575,2]
[350480717,1737913848526,-500.0,0.00016575,2]
[350480718,1737913848536,-500.0,0.00016575,2]
[350480719,1737913848547,-500.0,0.00016575,2]
[350480720,1737913848557,-500.0,0.00016575,2]
[350480721,1737913848567,-1061.73,0.00016575,2]
[350480722,1737913848577,-500.0,0.00016575,2]
[350480723,1737913848587,-500.0,0.00016575,2]
[350480724,1737913848597,-500.0,0.00016575,2]
[350480725,1737913848606,-500.0,0.00016575,2]
[350480726,1737913848616,-500.0,0.00016575,2]
[350480727,1737913848626,-500.0,0.00016575,2]
[350480728,1737913848635,-500.0,0.00016575,2]
[350480729,1737913848645,-500.0,0.00016575,2]
[350480730,1737913848655,-500.0,0.00016575,2]
[350480731,1737913848665,-1765.96,0.00016575,2]
[350480732,1737913848675,-500.0,0.00016575,2]
[350480733,1737913848684,-500.0,0.00016575,2]
[350480734,1737913848695,-500.0,0.00016575,2]
[350480735,1737913848705,-500.0,0.00016575,2]
[350480736,1737913848714,-606.51,0.00016575,2]
[350480737,1737913848724,-500.0,0.00016575,2]
[350480738,1737913848733,-500.0,0.00016575,2]
[350480739,1737913848742,-500.0,0.00016575,2]
[350480740,1737913848752,-500.0,0.00016575,2]
[350480741,1737913848762,-503.71208199,0.00016575,2]
[350480742,1737913848772,-500.0,0.00016575,2]
[350480743,1737913848782,-500.0,0.00016575,2]
[350480744,1737913848794,-500.0,0.00016575,2]
[350480745,1737913848804,-500.0,0.00016575,2]
[350480746,1737913848814,-500.0,0.00016575,2]
[350480747,1737913848824,-500.0,0.00016575,2]
[350480748,1737913848947,-500.0,0.00016575,2]
[350480749,1737913848958,-500.0,0.00016575,2]
[350480750,1737913848968,-569.65,0.00016575,2]
[350480751,1737913848978,-500.0,0.00016575,2]
[350480752,1737913848988,-529.91499423,0.00016575,2]
[350480753,1737913848998,-1330.19,0.00016575,2]
[350480754,1737913849007,-500.0,0.00016575,2]
[350480755,1737913849018,-2565.9,0.00016575,2]
[350480756,1737913849028,-500.0,0.00016575,2]
[350480757,1737913849038,-500.0,0.00016575,2]
[350480758,1737913849048,-500.0,0.00016575,2]
[350480759,1737913849058,-671.03,0.00016575,2]
[350480760,1737913849068,-2383.85,0.00016575,2]
[350480761,1737913849078,-395.0,0.00016648,2]
[350480762,1737913849088,-196.0,0.00016684,2]
[350480763,1737913849098,-1198.5,0.00016711,2]
[350480764,1737913849108,-1198.5,0.00016711,2]
[350480765,1737913849118,-1198.5,0.00016711,2]
[350480766,1737913849127,-738.55,0.00016711,2]
[350480767,1737913849137,-738.55,0.00016711,2]
[350480768,1737913849147,-738.55,0.00016711,2]
[350480769,1737913849156,-738.55,0.00016711,2]
[350480770,1737913849166,-738.55,0.00016711,2]
[350480771,1737913849175,-738.55,0.00016711,2]
[350480772,1737913849185,-738.55,0.00016711,2]
[350480773,1737913849195,-738.65861755,0.00016711,2]
[350480774,1737913849204,-151.0,0.00016712,2]
[350480775,1737913849214,-500.0,0.00016712,2]
[350480776,1737913849224,-500.0,0.00016712,2]
[350480777,1737913849233,-507.93520715,0.00016712,2]
[350480778,1737913849248,-500.0,0.00016712,2]
[350480779,1737913849257,-500.0,0.00016712,2]
[350480780,1737913849267,-304.00982534,0.00016712,2]
[350480781,1737913849277,-500.0,0.00016712,2]
[350480782,1737913849287,-500.0,0.00016712,2]
[350480783,1737913849296,-500.0,0.00016712,2]
[350480784,1737913849306,-500.0,0.00016712,2]
[350480785,1737913849315,-500.0,0.00016712,2]
[350480786,1737913849325,-586.70680086,0.00016712,2]
[350480787,1737913849335,-511.39507894,0.00016712,2]
[350480788,1737913849344,-500.0,0.00016712,2]
[350480789,1737913849353,-500.0,0.00016712,2]
[350480790,1737913849363,-498.10414478,0.00016712,2]
[350480791,1737913849373,-500.0,0.00016712,2]
[350480792,1737913849383,-500.0,0.00016712,2]
[350480793,1737913849392,-500.0,0.00016712,2]
[350480794,1737913849401,-500.0,0.00016712,2]
[350480795,1737913849411,-504.04299271,0.00016712,2]
[350480796,1737913849420,-500.0,0.00016712,2]
[350480797,1737913849430,-500.0,0.00016712,2]
[350480798,1737913849440,-500.0,0.00016712,2]
[350480799,1737913849453,-500.0,0.00016712,2]
[350480800,1737913849462,-385.94170339,0.00016712,2]
[350480801,1737913849471,-500.0,0.00016712,2]
[350480802,1737913849481,-542.81041593,0.00016712,2]
[350480803,1737913849490,-500.0,0.00016712,2]
[350480804,1737913849499,-500.0,0.00016712,2]
[350480805,1737913849508,-637.08348732,0.00016712,2]
[350480806,1737913849517,-500.0,0.00016712,2]
[350480807,1737913849527,-500.0,0.00016712,2]
[350480808,1737913849537,-500.0,0.00016712,2]
[350480809,1737913849546,-500.0,0.00016712,2]
[350480810,1737913849555,-500.0,0.00016712,2]
[350480811,1737913849564,-500.0,0.00016712,2]
[350480812,1737913849573,-500.0,0.00016712,2]
[350480813,1737913849583,-222.61,0.00016712,2]
[350480814,1737913849592,-500.0,0.00016712,2]
[350480815,1737913849602,-1046.21,0.00016712,2]
[350480816,1737913849611,-500.0,0.00016712,2]
[350480817,1737913849620,-500.0,0.00016712,2]
[350480818,1737913849630,-788.43,0.00016712,2]
[350480819,1737913849639,-500.0,0.00016712,2]
[350480820,1737913849649,-500.0,0.00016712,2]
[350480821,1737913849659,-500.0,0.00016712,2]
[350480822,1737913849668,-500.0,0.00016712,2]
[350480823,1737913849677,-9738.4,0.00016712,2]
[350480824,1737913849687,-223.50359746,0.00016712,2]
[350480825,1737913849695,-500.0,0.00016712,2]
[350480826,1737913849705,-500.0,0.00016712,2]
[350480827,1737913849714,-500.0,0.00016712,2]
[350480828,1737913849724,-500.0,0.00016712,2]
[350480829,1737913849733,-500.0,0.00016712,2]
[350480830,1737913849742,-500.0,0.00016712,2]
[350480831,1737913849751,-500.0,0.00016712,2]
[350480832,1737913849760,-500.0,0.00016712,2]
[350480833,1737913849769,-500.0,0.00016712,2]
[350480834,1737913849779,-500.0,0.00016712,2]
[350480835,1737913849789,-500.0,0.00016712,2]
[350480836,1737913849798,-862.67,0.00016712,2]
[350480837,1737913849807,-500.0,0.00016712,2]
[350480838,1737913849816,-2007.14,0.00016712,2]
[350480839,1737913849825,-500.0,0.00016712,2]
[350480840,1737913849834,-500.0,0.00016712,2]
[350480841,1737913849843,-500.0,0.00016712,2]
[350480842,1737913849852,-4066.03,0.00016712,2]
[350480843,1737913849863,-500.0,0.00016712,2]
[350480844,1737913849873,-500.0,0.00016712,2]
[350480845,1737913849882,-500.0,0.00016712,2]
[350480846,1737913849892,-226.54,0.00016712,2]
[350480847,1737913849902,-500.0,0.00016712,2]
[350480848,1737913849912,-1264.14,0.00016712,2]
[350480849,1737913849921,-500.0,0.00016712,2]
[350480850,1737913849930,-500.0,0.00016712,2]
[350480851,1737913849939,-500.0,0.00016712,2]
[350480852,1737913849949,-500.0,0.00016712,2]
[350480853,1737913849958,-1061.73,0.00016712,2]
[350480854,1737913849967,-500.0,0.00016712,2]
[350480855,1737913849976,-500.0,0.00016712,2]
[350480856,1737913849986,-500.0,0.00016712,2]
[350480857,1737913849995,-500.0,0.00016712,2]
[350480858,1737913850005,-500.0,0.00016712,2]
[350480859,1737913850014,-500.0,0.00016712,2]
[350480860,1737913850024,-500.0,0.00016712,2]
[350480861,1737913850033,-1765.96,0.00016712,2]
[350480862,1737913850043,-500.0,0.00016712,2]
[350480863,1737913850052,-500.0,0.00016712,2]
[350480864,1737913850061,-500.0,0.00016712,2]
[350480865,1737913850070,-500.0,0.00016712,2]
[350480866,1737913850079,-500.0,0.00016712,2]
[350480867,1737913850088,-500.0,0.00016712,2]
[350480868,1737913850097,-500.0,0.00016712,2]
[350480869,1737913850106,-500.0,0.00016712,2]
[350480870,1737913850115,-500.0,0.00016712,2]
[350480871,1737913850124,-500.0,0.00016712,2]
[350480872,1737913850133,-500.0,0.00016712,2]
[350480873,1737913850142,-1330.19,0.00016712,2]
[350480874,1737913850152,-2565.9,0.00016712,2]
[350480875,1737913850161,-500.0,0.00016712,2]
[350480876,1737913850171,-500.0,0.00016712,2]
[350480877,1737913850180,-671.03,0.00016712,2]
[350480878,1737913850190,-287.0,0.0001674,2]
[350480879,1737913850199,-200.13858604,0.000168,2]
[350480880,1737913850208,-355.646,0.00016805,2]
[350480881,1737913850217,-1198.5,0.00016848,2]
[350480882,1737913850226,-1198.5,0.00016848,2]
[350480883,1737913850236,-1198.5,0.00016848,2]
[350480884,1737913850246,-1198.5,0.00016848,2]
[350480885,1737913850256,-1198.5,0.00016848,2]
[350480886,1737913850268,-1198.6025552,0.00016848,2]
[350480887,1737913850278,-500.0,0.00016849,2]
[350480888,1737913850288,-622.66956473,0.00016849,2]
[350480889,1737913850297,-500.0,0.00016849,2]
[350480890,1737913850307,-500.0,0.00016849,2]
[350480891,1737913850316,-500.0,0.00016849,2]
[350480892,1737913850327,-500.0,0.00016849,2]
[350480893,1737913850339,-500.0,0.00016849,2]
[350480894,1737913850349,-500.0,0.00016849,2]
[350480895,1737913850358,-500.0,0.00016849,2]
[350480896,1737913850368,-500.0,0.00016849,2]
[350480897,1737913850377,-500.0,0.00016849,2]
[350480898,1737913850386,-473.10969426,0.00016849,2]
[350480899,1737913850395,-500.0,0.00016849,2]
[350480900,1737913850406,-248.79,0.00016849,2]
[350480901,1737913850415,-154.31,0.00016849,2]
[350480902,1737913850424,-339.12,0.00016849,2]
[350480903,1737913850433,-500.0,0.00016849,2]
[350480904,1737913850442,-500.0,0.00016849,2]
[350480905,1737913850455,-1046.21,0.00016849,2]
[350480906,1737913850464,-519.41,0.00016849,2]
[350480907,1737913850473,-500.0,0.00016849,2]
[350480908,1737913850482,-788.43,0.00016849,2]
[350480909,1737913850491,-643.6971089,0.00016849,2]
[350480910,1737913850500,-500.0,0.00016849,2]
[350480911,1737913850509,-500.0,0.00016849,2]
[350480912,1737913850519,-9738.4,0.00016849,2]
[350480913,1737913850528,-500.0,0.00016849,2]
[350480914,1737913850537,-500.0,0.00016849,2]
[350480915,1737913850547,-500.0,0.00016849,2]
[350480916,1737913850556,-500.0,0.00016849,2]
[350480917,1737913850564,-500.0,0.00016849,2]
[350480918,1737913850574,-500.0,0.00016849,2]
[350480919,1737913850583,-500.0,0.00016849,2]
[350480920,1737913850592,-500.0,0.00016849,2]
[350480921,1737913850601,-500.0,0.00016849,2]
[350480922,1737913850611,-500.0,0.00016849,2]
[350480923,1737913850620,-862.67,0.00016849,2]
[350480924,1737913850629,-500.0,0.00016849,2]
[350480925,1737913850640,-2007.14,0.00016849,2]
[350480926,1737913850650,-193.34,0.00016849,2]
[350480927,1737913850659,-4066.03,0.00016849,2]
[350480928,1737913850677,-500.0,0.00016849,2]
[350480929,1737913850688,-500.0,0.00016849,2]
[350480930,1737913850698,-500.0,0.00016849,2]
[350480931,1737913850707,-1264.14,0.00016849,2]
[350480932,1737913850716,-500.0,0.00016849,2]
[350480933,1737913850726,-500.0,0.00016849,2]
[350480934,1737913850736,-500.0,0.00016849,2]
[350480935,1737913850745,-500.0,0.00016849,2]
[350480936,1737913850755,-1061.73,0.00016849,2]
[350480937,1737913850764,-621.15,0.00016849,2]
[350480938,1737913850774,-500.0,0.00016849,2]
[350480939,1737913850783,-500.0,0.00016849,2]
[350480940,1737913850792,-500.0,0.00016849,2]
[350480941,1737913850802,-500.0,0.00016849,2]
[350480942,1737913850811,-500.0,0.00016849,2]
[350480943,1737913850820,-500.0,0.00016849,2]
[350480944,1737913850830,-1765.96,0.00016849,2]
[350480945,1737913850840,-500.0,0.00016849,2]
[350480946,1737913850850,-500.0,0.00016849,2]
[350480947,1737913850859,-500.0,0.00016849,2]
[350480948,1737913850869,-500.0,0.00016849,2]
[350480949,1737913850878,-598.03,0.00016849,2]
[350480950,1737913850888,-500.0,0.00016849,2]
[350480951,1737913850897,-178.84,0.00016849,2]
[350480952,1737913850907,-1330.19,0.00016849,2]
[350480953,1737913850916,-2565.9,0.00016849,2]
[350480954,1737913850926,-500.0,0.00016849,2]
[350480955,1737913850935,-500.0,0.00016849,2]
[350480956,1737913850944,-671.03,0.00016849,2]
[350480957,1737913850954,-4447.68063149,0.000169,2]
[350480958,1737913850964,-1200.0,0.00016903,2]
[350480959,1737913850973,-166.874,0.0001692,2]
[350480960,1737913850983,-500.0,0.00016986,2]
[350480961,1737913850992,-500.0,0.00016986,2]
[350480962,1737913851002,-554.13940602,0.00016986,2]
[350480963,1737913851011,-551.45,0.00016986,2]
[350480964,1737913851020,-500.0,0.00016986,2]
[350480965,1737913851030,-500.0,0.00016986,2]
[350480966,1737913851039,-500.0,0.00016986,2]
[350480967,1737913851049,-278.67,0.00016986,2]
[350480968,1737913851059,-500.0,0.00016986,2]
[350480969,1737913851068,-500.0,0.00016986,2]
[350480970,1737913851078,-434.73234222,0.00016986,2]
[350480971,1737913851087,-500.0,0.00016986,2]
[350480972,1737913851096,-1046.21,0.00016986,2]
[350480973,1737913851106,-407.18829591,0.00016986,2]
[350480974,1737913851115,-788.43,0.00016986,2]
[350480975,1737913851125,-500.0,0.00016986,2]
[350480976,1737913851134,-500.0,0.00016986,2]
[350480977,1737913851143,-9738.4,0.00016986,2]
[350480978,1737913851153,-500.0,0.00016986,2]
[350480979,1737913851162,-610.19,0.00016986,2]
[350480980,1737913851172,-500.0,0.00016986,2]
[350480981,1737913851181,-500.0,0.00016986,2]
[350480982,1737913851190,-500.0,0.00016986,2]
[350480983,1737913851200,-500.0,0.00016986,2]
[350480984,1737913851209,-500.0,0.00016986,2]
[350480985,1737913851218,-500.0,0.00016986,2]
[350480986,1737913851227,-224.79726867,0.00016986,2]
[350480987,1737913851236,-500.0,0.00016986,2]
[350480988,1737913851245,-862.67,0.00016986,2]
[350480989,1737913851255,-500.0,0.00016986,2]
[350480990,1737913851265,-2007.14,0.00016986,2]
[350480991,1737913851274,-4066.03,0.00016986,2]
[350480992,1737913851283,-500.0,0.00016986,2]
[350480993,1737913851292,-500.0,0.00016986,2]
[350480994,1737913851301,-500.0,0.00016986,2]
[350480995,1737913851310,-1264.14,0.00016986,2]
[350480996,1737913851320,-500.0,0.00016986,2]
[350480997,1737913851330,-500.0,0.00016986,2]
[350480998,1737913851341,-500.0,0.00016986,2]
[350480999,1737913851352,-500.0,0.00016986,2]
[350481000,1737913851362,-1061.73,0.00016986,2]
[350481001,1737913851372,-500.0,0.00016986,2]
[350481002,1737913851381,-500.0,0.00016986,2]
[350481003,1737913851392,-500.0,0.00016986,2]
[350481004,1737913851402,-500.0,0.00016986,2]
[350481005,1737913851411,-500.0,0.00016986,2]
[350481006,1737913851422,-500.0,0.00016986,2]
[350481007,1737913851432,-1765.96,0.00016986,2]
[350481008,1737913851442,-500.0,0.00016986,2]
[350481009,1737913851461,-500.0,0.00016986,2]
[350481010,1737913851471,-500.0,0.00016986,2]
[350481011,1737913851480,-500.0,0.00016986,2]
[350481012,1737913851490,-1330.19,0.00016986,2]
[350481013,1737913851501,-2565.9,0.00016986,2]
[350481014,1737913851511,-500.0,0.00016986,2]
[350481015,1737913851520,-671.03,0.00016986,2]
[350481016,1737913851530,-420.0,0.00016993,2]
[350481017,1737913851539,-524.4894485,0.00017021,2]
[350481018,1737913851549,-1000.0,0.00017021,2]
[350481019,1737913851559,-500.0,0.00017068,2]
[350481020,1737913851569,-224.0,0.00017071,2]
[350481021,1737913851713,-4447.68063129,0.00017107,2]
[350481022,1737913851723,-500.0,0.00017123,2]
[350481023,1737913851733,-500.0,0.00017123,2]
[350481024,1737913851742,-500.0,0.00017123,2]
[350481025,1737913851751,-500.0,0.00017123,2]
[350481026,1737913851761,-500.0,0.00017123,2]
[350481027,1737913851770,-500.0,0.00017123,2]
[350481028,1737913851779,-500.0,0.00017123,2]
[350481029,1737913851788,-1046.21,0.00017123,2]
[350481030,1737913851798,-788.43,0.00017123,2]
[350481031,1737913851807,-260.12,0.00017123,2]
[350481032,1737913851816,-500.0,0.00017123,2]
[350481033,1737913851826,-9738.4,0.00017123,2]
[350481034,1737913851836,-500.0,0.00017123,2]
[350481035,1737913851845,-500.0,0.00017123,2]
[350481036,1737913851854,-379.86934078,0.00017123,2]
[350481037,1737913851863,-500.0,0.00017123,2]
[350481038,1737913851873,-500.0,0.00017123,2]
[350481039,1737913851882,-500.0,0.00017123,2]
[350481040,1737913851891,-500.0,0.00017123,2]
[350481041,1737913851901,-500.0,0.00017123,2]
[350481042,1737913851910,-862.67,0.00017123,2]
[350481043,1737913851919,-598.48,0.00017123,2]
[350481044,1737913851929,-2007.14,0.00017123,2]
[350481045,1737913851938,-4066.03,0.00017123,2]
[350481046,1737913851948,-500.0,0.00017123,2]
[350481047,1737913851957,-500.0,0.00017123,2]
[350481048,1737913851967,-500.0,0.00017123,2]
[350481049,1737913851976,-1264.14,0.00017123,2]
[350481050,1737913851985,-500.0,0.00017123,2]
[350481051,1737913851994,-500.0,0.00017123,2]
[350481052,1737913852003,-546.78,0.00017123,2]
[350481053,1737913852013,-500.0,0.00017123,2]
[350481054,1737913852022,-1061.73,0.00017123,2]
[350481055,1737913852031,-500.0,0.00017123,2]
[350481056,1737913852040,-500.0,0.00017123,2]
[350481057,1737913852049,-500.0,0.00017123,2]
[350481058,1737913852059,-500.0,0.00017123,2]
[350481059,1737913852068,-500.0,0.00017123,2]
[350481060,1737913852077,-1765.96,0.00017123,2]
[350481061,1737913852087,-500.0,0.00017123,2]